[Event "Open NK Rapid 2025"]
[Site "Helmond, Netherlands"]
[Date "2025.05.03"]
[Round "5.17"]
[White "Jara Segovia, Jesus Javier"]
[Black "Kazarjan, Gachatur"]
[Result "1-0"]
[TimeControl "15+5"]
[WhiteFideId "3925439"]
[BlackFideId "1068750"]
[WhiteElo "1909"]
[BlackElo "2155"]

1. d4 {[%clk 00:15:06]} {[%emt 00:00:04]} Nf6 {[%clk 00:15:03]} {[%emt
00:00:07]} 2. Nf3 {[%clk 00:15:08]} {[%emt 00:00:02]} d5 {[%clk 00:15:06]}
{[%emt 00:00:03]} 3. e3 {[%clk 00:15:10]} {[%emt 00:00:03]} e6 {[%clk
00:14:59]} {[%emt 00:00:12]} 4. Bd3 {[%clk 00:15:07]} {[%emt 00:00:08]} Bd6
{[%clk 00:15:01]} {[%emt 00:00:03]} 5. Nbd2 {[%clk 00:15:02]} {[%emt 00:00:10]}
O-O {[%clk 00:15:02]} {[%emt 00:00:04]} 6. Qe2 {[%clk 00:14:54]} {[%emt
00:00:13]} Re8 {[%clk 00:15:00]} {[%emt 00:00:07]} 7. Ne5 {[%clk 00:14:04]}
{[%emt 00:00:54]} Nbd7 {[%clk 00:15:02]} {[%emt 00:00:04]} 8. f4 {[%clk
00:14:02]} {[%emt 00:00:06]} c5 {[%clk 00:15:05]} {[%emt 00:00:03]} 9. c3
{[%clk 00:14:04]} {[%emt 00:00:03]} b6 {[%clk 00:14:59]} {[%emt 00:00:11]} 10.
O-O {[%clk 00:13:56]} {[%emt 00:00:13]} Bb7 {[%clk 00:15:03]} 11. g4 {[%clk
00:13:20]} {[%emt 00:00:41]} Ne4 {[%clk 00:14:51]} {[%emt 00:00:17]} 12. Bxe4
{[%clk 00:12:47]} {[%emt 00:00:38]} dxe4 {[%clk 00:14:35]} {[%emt 00:00:21]} 13.
Rf2 {[%clk 00:12:40]} {[%emt 00:00:12]} Bxe5 {[%clk 00:14:18]} {[%emt
00:00:22]} 14. fxe5 {[%clk 00:12:15]} {[%emt 00:00:30]} Qg5 {[%clk 00:14:11]}
{[%emt 00:00:11]} 15. Rf4 {[%clk 00:11:55]} {[%emt 00:00:25]} cxd4 {[%clk
00:14:09]} {[%emt 00:00:09]} 16. cxd4 {[%clk 00:11:52]} {[%emt 00:00:08]} Rac8
{[%clk 00:13:39]} {[%emt 00:00:34]} 17. Nxe4 {[%clk 00:11:30]} {[%emt
00:00:26]} Qg6 {[%clk 00:13:34]} {[%emt 00:00:11]} 18. Nd6 {[%clk 00:10:59]}
{[%emt 00:00:37]} Rc2 {[%clk 00:13:14]} {[%emt 00:00:24]} 19. Bd2 {[%clk
00:11:02]} {[%emt 00:00:02]} Rb8 {[%clk 00:12:36]} {[%emt 00:00:43]} 20. Rxf7
{[%clk 00:10:55]} Rxd2 {[%clk 00:12:28]} {[%emt 00:00:25]} 21. Qxd2 {[%clk
00:10:29]} {[%emt 00:00:30]} Qxg4+ {[%clk 00:12:31]} {[%emt 00:00:02]} 22. Kf1
{[%clk 00:10:21]} {[%emt 00:00:13]} Ba6+ {[%clk 00:12:02]} {[%emt 00:00:35]} 23.
Kf2 {[%clk 00:09:52]} {[%emt 00:00:33]} Rf8 {[%clk 00:11:07]} {[%emt 00:01:01]}
24. Rf4 {[%clk 00:08:43]} {[%emt 00:01:14]} Rxf4+ {[%clk 00:10:09]} {[%emt
00:01:04]} 25. exf4 {[%clk 00:08:43]} {[%emt 00:00:04]} Nf8 {[%clk 00:10:12]}
{[%emt 00:00:02]} 26. Rg1 {[%clk 00:08:35]} {[%emt 00:00:12]} Qh4+ {[%clk
00:10:14]} {[%emt 00:00:03]} 27. Ke3 {[%clk 00:08:26]} {[%emt 00:00:14]} Ng6
{[%clk 00:09:47]} {[%emt 00:00:34]} 28. Qf2 {[%clk 00:08:13]} {[%emt 00:00:16]}
Qd8 {[%clk 00:09:15]} {[%emt 00:00:38]} 29. f5 {[%clk 00:08:01]} {[%emt
00:00:17]} exf5 {[%clk 00:08:44]} {[%emt 00:00:37]} 30. Qxf5 {[%clk 00:07:58]}
Qe7 {[%clk 00:08:36]} {[%emt 00:00:19]} 31. Rc1 {[%clk 00:07:32]} {[%emt
00:00:30]} Nf8 {[%clk 00:08:30]} {[%emt 00:00:13]} 32. Rc2 {[%clk 00:06:58]}
{[%emt 00:00:39]} Ne6 {[%clk 00:07:35]} {[%emt 00:00:59]} 33. Rf2 {[%clk
00:06:51]} {[%emt 00:00:12]} Nd8 {[%clk 00:07:39]} {[%emt 00:00:02]} 34. h4
{[%clk 00:06:29]} {[%emt 00:00:28]} h6 {[%clk 00:07:30]} {[%emt 00:00:13]} 35.
Rg2 {[%clk 00:05:47]} {[%emt 00:00:46]} Qxh4 {[%clk 00:07:11]} {[%emt
00:00:25]} 36. Rf2 {[%clk 00:05:13]} {[%emt 00:00:38]} Qg3+ {[%clk 00:06:59]}
{[%emt 00:00:16]} 37. Qf3 {[%clk 00:05:10]} {[%emt 00:00:10]} Qg5+ {[%clk
00:06:44]} {[%emt 00:00:20]} 38. Qf4 {[%clk 00:05:10]} {[%emt 00:00:04]} Qe7
{[%clk 00:06:47]} {[%emt 00:00:02]} 39. Nf5 {[%clk 00:05:04]} {[%emt 00:00:11]}
Qe6 {[%clk 00:06:06]} {[%emt 00:00:47]} 40. Rg2 {[%clk 00:04:29]} {[%emt
00:00:40]} g5 {[%clk 00:03:55]} {[%emt 00:02:16]} 41. Rxg5+ {[%clk 00:04:23]}
{[%emt 00:00:11]} hxg5 {[%clk 00:03:59]} {[%emt 00:00:01]} 42. Qxg5+ {[%clk
00:04:26]} {[%emt 00:00:02]} Kf8 {[%clk 00:03:53]} {[%emt 00:00:11]} 43. Qg7+
{[%clk 00:04:23]} {[%emt 00:00:08]} Ke8 {[%clk 00:03:57]} {[%emt 00:00:01]} 44.
Nd6+ {[%clk 00:04:25]} {[%emt 00:00:02]} Qxd6 {[%clk 00:04:01]} {[%emt
00:00:02]} 45. exd6 {[%clk 00:04:29]} {[%emt 00:00:01]} Nc6 {[%clk 00:04:02]}
{[%emt 00:00:05]} 46. Qc7 {[%clk 00:04:24]} {[%emt 00:00:09]} Bb5 {[%clk
00:04:00]} {[%emt 00:00:07]} 47. d7+ {[%clk 00:04:25]} {[%emt 00:00:04]} 1-0

[Event "Open NK Rapid 2025"]
[Site "Helmond, Netherlands"]
[Date "2025.05.03"]
[Round "5.18"]
[White "Labruyere, Roger"]
[Black "Bach Pareja, Raimon"]
[Result "1-0"]
[TimeControl "15+5"]
[WhiteFideId "1059505"]
[BlackFideId "54728380"]
[WhiteElo "2117"]
[BlackElo "1868"]

1. e4 {[%clk 00:15:09]} {[%emt 00:00:01]} Nf6 {[%clk 00:15:01]} {[%emt
00:00:05]} 2. e5 {[%clk 00:15:13]} {[%emt 00:00:05]} Nd5 {[%clk 00:15:05]} 3.
d4 {[%clk 00:15:15]} {[%emt 00:00:03]} d6 {[%clk 00:15:09]} 4. Nf3 {[%clk
00:15:19]} {[%emt 00:00:01]} dxe5 {[%clk 00:14:57]} {[%emt 00:00:17]} 5. Nxe5
{[%clk 00:15:22]} {[%emt 00:00:02]} c6 {[%clk 00:14:58]} {[%emt 00:00:05]} 6.
c4 {[%clk 00:15:23]} {[%emt 00:00:04]} Nb4 {[%clk 00:14:58]} {[%emt 00:00:04]}
7. Be3 {[%clk 00:15:24]} {[%emt 00:00:04]} Bf5 {[%clk 00:14:00]} {[%emt
00:01:03]} 8. Na3 {[%clk 00:15:18]} {[%emt 00:00:11]} Nd7 {[%clk 00:12:02]}
{[%emt 00:02:03]} 9. Nxd7 {[%clk 00:14:34]} {[%emt 00:00:49]} Qxd7 {[%clk
00:12:00]} {[%emt 00:00:07]} 10. Be2 {[%clk 00:14:38]} e5 {[%clk 00:10:35]}
{[%emt 00:01:31]} 11. dxe5 {[%clk 00:14:37]} {[%emt 00:00:05]} Nd3+ {[%clk
00:09:58]} {[%emt 00:00:42]} 12. Bxd3 {[%clk 00:14:33]} {[%emt 00:00:09]} Bxd3
{[%clk 00:10:00]} {[%emt 00:00:04]} 13. Qb3 {[%clk 00:14:28]} {[%emt 00:00:09]}
O-O-O {[%clk 00:09:29]} {[%emt 00:00:35]} 14. O-O-O {[%clk 00:14:29]} {[%emt
00:00:05]} Qf5 {[%clk 00:09:03]} {[%emt 00:00:31]} 15. Nc2 {[%clk 00:14:21]}
{[%emt 00:00:13]} c5 {[%clk 00:08:08]} {[%emt 00:01:00]} 16. Ne1 {[%clk
00:14:01]} {[%emt 00:00:25]} Be4 {[%clk 00:07:11]} {[%emt 00:01:03]} 17. Rxd8+
{[%clk 00:14:04]} {[%emt 00:00:01]} Kxd8 {[%clk 00:07:14]} {[%emt 00:00:02]} 18.
f3 {[%clk 00:14:05]} {[%emt 00:00:04]} Bc6 {[%clk 00:07:17]} {[%emt 00:00:03]}
19. Nd3 {[%clk 00:14:08]} b6 {[%clk 00:07:03]} {[%emt 00:00:19]} 20. Rd1 {[%clk
00:14:07]} {[%emt 00:00:06]} Kc7 {[%clk 00:06:53]} {[%emt 00:00:15]} 21. Qc3
{[%clk 00:14:05]} {[%emt 00:00:08]} g5 {[%clk 00:06:12]} {[%emt 00:00:44]} 22.
e6 {[%clk 00:14:00]} {[%emt 00:00:11]} Rg8 {[%clk 00:05:58]} {[%emt 00:00:19]}
23. exf7 {[%clk 00:14:03]} {[%emt 00:00:02]} Qxf7 {[%clk 00:05:41]} {[%emt
00:00:21]} 24. Qa3 {[%clk 00:13:26]} {[%emt 00:00:43]} Qxc4+ {[%clk 00:05:32]}
{[%emt 00:00:13]} 25. Kb1 {[%clk 00:13:28]} {[%emt 00:00:03]} Kb7 {[%clk
00:04:40]} {[%emt 00:00:58]} 26. Ne5 {[%clk 00:13:29]} {[%emt 00:00:04]} Qe2
{[%clk 00:04:20]} {[%emt 00:00:25]} 27. Qb3 {[%clk 00:13:30]} {[%emt 00:00:04]}
c4 {[%clk 00:01:42]} {[%emt 00:02:44]} 28. Nxc4 {[%clk 00:13:27]} {[%emt
00:00:07]} Rg6 {[%clk 00:00:32]} {[%emt 00:01:14]} 29. Bxb6 {[%clk 00:13:08]}
{[%emt 00:00:26]} Bg7 {[%clk 00:00:11]} {[%emt 00:00:26]} 30. Bxa7+ {[%clk
00:13:02]} {[%emt 00:00:11]} Kxa7 {[%clk 00:00:11]} {[%emt 00:00:05]} 31. Qb6+
{[%clk 00:13:06]} Ka8 {[%clk 00:00:14]} {[%emt 00:00:01]} 32. Rd8# {[%clk
00:13:09]} {[%emt 00:00:02]} 1-0

[Event "Open NK Rapid 2025"]
[Site "Helmond, Netherlands"]
[Date "2025.05.03"]
[Round "5.19"]
[White "Pol, Nico"]
[Black "Margaryan, Artur"]
[Result "0-1"]
[TimeControl "15+5"]
[WhiteFideId "1064002"]
[BlackFideId "13304348"]
[WhiteElo "1878"]
[BlackElo "2100"]

1. b4 {[%clk 00:15:07]} {[%emt 00:00:02]} c6 {[%clk 00:14:42]} {[%emt
00:00:29]} 2. Bb2 {[%clk 00:15:07]} {[%emt 00:00:04]} a5 {[%clk 00:14:46]}
{[%emt 00:00:02]} 3. a3 {[%clk 00:14:42]} {[%emt 00:00:30]} axb4 {[%clk
00:14:50]} 4. axb4 {[%clk 00:14:47]} {[%emt 00:00:01]} Rxa1 {[%clk 00:14:53]} 5.
Bxa1 {[%clk 00:14:50]} {[%emt 00:00:01]} Qb6 {[%clk 00:14:55]} {[%emt
00:00:03]} 6. c3 {[%clk 00:14:23]} {[%emt 00:00:33]} e5 {[%clk 00:14:48]}
{[%emt 00:00:11]} 7. e3 {[%clk 00:14:17]} {[%emt 00:00:12]} d5 {[%clk
00:14:44]} {[%emt 00:00:08]} 8. Qa4 {[%clk 00:14:00]} {[%emt 00:00:23]} Nf6
{[%clk 00:14:10]} {[%emt 00:00:39]} 9. Nf3 {[%clk 00:13:52]} {[%emt 00:00:12]}
e4 {[%clk 00:13:46]} {[%emt 00:00:29]} 10. Nd4 {[%clk 00:13:47]} {[%emt
00:00:10]} Bd6 {[%clk 00:13:43]} {[%emt 00:00:09]} 11. Be2 {[%clk 00:13:44]}
{[%emt 00:00:07]} O-O {[%clk 00:13:40]} {[%emt 00:00:08]} 12. O-O {[%clk
00:13:39]} {[%emt 00:00:11]} Qc7 {[%clk 00:12:36]} {[%emt 00:01:09]} 13. h3
{[%clk 00:13:07]} {[%emt 00:00:37]} Qe7 {[%clk 00:12:22]} {[%emt 00:00:19]} 14.
f4 {[%clk 00:12:29]} {[%emt 00:00:43]} exf3 {[%clk 00:12:17]} {[%emt 00:00:10]}
15. Bxf3 {[%clk 00:12:18]} {[%emt 00:00:15]} Qe5 {[%clk 00:12:12]} {[%emt
00:00:10]} 16. Kf2 {[%clk 00:11:35]} {[%emt 00:00:48]} Nbd7 {[%clk 00:11:34]}
{[%emt 00:00:44]} 17. Na3 {[%clk 00:11:28]} {[%emt 00:00:12]} Ne4+ {[%clk
00:10:44]} {[%emt 00:00:55]} 18. Bxe4 {[%clk 00:11:08]} {[%emt 00:00:25]} Qxe4
{[%clk 00:10:45]} {[%emt 00:00:04]} 19. Qc2 {[%clk 00:10:31]} {[%emt 00:00:42]}
Qh4+ {[%clk 00:10:19]} {[%emt 00:00:29]} 20. Ke2 {[%clk 00:09:47]} {[%emt
00:00:50]} Qh5+ {[%clk 00:10:14]} {[%emt 00:00:10]} 21. Nf3 {[%clk 00:09:26]}
{[%emt 00:00:27]} Nf6 {[%clk 00:09:28]} {[%emt 00:00:51]} 22. Kd1 {[%clk
00:09:02]} {[%emt 00:00:30]} Bf5 {[%clk 00:09:12]} {[%emt 00:00:20]} 23. d3
{[%clk 00:08:31]} {[%emt 00:00:36]} Bg6 {[%clk 00:08:55]} {[%emt 00:00:22]} 24.
Qe2 {[%clk 00:08:10]} {[%emt 00:00:25]} Ra8 {[%clk 00:08:32]} {[%emt 00:00:32]}
25. Bb2 {[%clk 00:08:14]} Bg3 {[%clk 00:05:58]} {[%emt 00:02:37]} 26. Kc2
{[%clk 00:05:55]} {[%emt 00:02:24]} Qf5 {[%clk 00:05:39]} {[%emt 00:00:23]} 27.
Nd4 {[%clk 00:05:10]} {[%emt 00:00:50]} Qd7 {[%clk 00:05:40]} {[%emt 00:00:04]}
28. Kd2 {[%clk 00:05:04]} {[%emt 00:00:12]} h5 {[%clk 00:05:19]} {[%emt
00:00:26]} 29. Qf3 {[%clk 00:04:33]} {[%emt 00:00:37]} h4 {[%clk 00:05:18]}
{[%emt 00:00:05]} 30. Nf5 {[%clk 00:04:37]} {[%emt 00:00:01]} Bh5 {[%clk
00:05:13]} {[%emt 00:00:10]} 31. Nh6+ {[%clk 00:04:19]} {[%emt 00:00:24]} Kf8
{[%clk 00:04:56]} {[%emt 00:00:21]} 32. Qf5 {[%clk 00:04:16]} {[%emt 00:00:07]}
Qe6 {[%clk 00:03:53]} {[%emt 00:01:09]} 33. Qxe6 {[%clk 00:04:12]} {[%emt
00:00:10]} fxe6 {[%clk 00:03:56]} {[%emt 00:00:01]} 34. Ng4 {[%clk 00:04:16]}
{[%emt 00:00:01]} Ke7 {[%clk 00:03:41]} {[%emt 00:00:20]} 35. Nf2 {[%clk
00:04:04]} {[%emt 00:00:17]} b5 {[%clk 00:03:30]} {[%emt 00:00:16]} 36. Nh1
{[%clk 00:03:15]} {[%emt 00:00:54]} Bd6 {[%clk 00:03:32]} {[%emt 00:00:02]} 37.
Ra1 {[%clk 00:03:17]} {[%emt 00:00:04]} Bg6 {[%clk 00:03:25]} {[%emt 00:00:12]}
38. Nc2 {[%clk 00:03:11]} {[%emt 00:00:11]} Rxa1 {[%clk 00:03:20]} {[%emt
00:00:10]} 39. Bxa1 {[%clk 00:03:16]} e5 {[%clk 00:03:23]} {[%emt 00:00:01]} 40.
Ne1 {[%clk 00:03:06]} {[%emt 00:00:15]} e4 {[%clk 00:03:20]} {[%emt 00:00:07]}
41. d4 {[%clk 00:03:05]} {[%emt 00:00:06]} Bh5 {[%clk 00:03:01]} {[%emt
00:00:24]} 42. Bb2 {[%clk 00:03:00]} {[%emt 00:00:10]} Nd7 {[%clk 00:03:00]}
{[%emt 00:00:07]} 43. Nc2 {[%clk 00:03:01]} {[%emt 00:00:04]} Nb6 {[%clk
00:02:56]} {[%emt 00:00:09]} 44. Na3 {[%clk 00:02:54]} {[%emt 00:00:12]} Ke6
{[%clk 00:03:00]} {[%emt 00:00:01]} 45. Ke1 {[%clk 00:02:50]} {[%emt 00:00:09]}
Kf5 {[%clk 00:03:00]} {[%emt 00:00:05]} 46. Kf2 {[%clk 00:02:55]} Bd1 {[%clk
00:02:55]} {[%emt 00:00:10]} 47. g4+ {[%clk 00:02:46]} {[%emt 00:00:13]} hxg3+
{[%clk 00:02:45]} {[%emt 00:00:15]} 48. Nxg3+ {[%clk 00:02:50]} {[%emt
00:00:02]} Kg5 {[%clk 00:02:42]} {[%emt 00:00:08]} 49. Bc1 {[%clk 00:02:42]}
{[%emt 00:00:13]} g6 {[%clk 00:02:42]} {[%emt 00:00:05]} 50. Bd2 {[%clk
00:02:45]} {[%emt 00:00:02]} Kh4 {[%clk 00:02:43]} {[%emt 00:00:03]} 51. Nh1
{[%clk 00:02:26]} {[%emt 00:00:24]} Bf3 {[%clk 00:02:02]} {[%emt 00:00:46]} 52.
Kg1 {[%clk 00:02:10]} {[%emt 00:00:22]} Bxh1 {[%clk 00:01:40]} {[%emt
00:00:26]} 53. Kxh1 {[%clk 00:02:11]} {[%emt 00:00:05]} Kxh3 {[%clk 00:01:44]}
54. Nc2 {[%clk 00:01:54]} {[%emt 00:00:21]} Kg3 {[%clk 00:01:43]} {[%emt
00:00:06]} 55. Kg1 {[%clk 00:01:39]} {[%emt 00:00:20]} Kf3 {[%clk 00:01:40]}
{[%emt 00:00:09]} 56. Kf1 {[%clk 00:01:43]} Bg3 {[%clk 00:01:38]} {[%emt
00:00:07]} 57. Na1 {[%clk 00:01:33]} {[%emt 00:00:16]} Nc4 {[%clk 00:01:36]}
{[%emt 00:00:07]} 58. Bc1 {[%clk 00:01:30]} {[%emt 00:00:08]} Nxe3+ {[%clk
00:01:25]} {[%emt 00:00:16]} 59. Bxe3 {[%clk 00:01:20]} {[%emt 00:00:15]} Kxe3
{[%clk 00:01:29]} {[%emt 00:00:01]} 60. Nb3 {[%clk 00:01:20]} {[%emt 00:00:05]}
Kd3 {[%clk 00:01:19]} {[%emt 00:00:14]} 61. Na5 {[%clk 00:01:22]} {[%emt
00:00:03]} e3 {[%clk 00:01:20]} {[%emt 00:00:04]} 0-1

[Event "Open NK Rapid 2025"]
[Site "Helmond, Netherlands"]
[Date "2025.05.03"]
[Round "5.20"]
[White "Westveer, Riny"]
[Black "Taams, Lisanne"]
[Result "1/2-1/2"]
[TimeControl "15+5"]
[WhiteFideId "1088734"]
[BlackFideId "1055852"]
[WhiteElo "1876"]
[BlackElo "2078"]

1. d4 {[%clk 00:15:08]} {[%emt 00:00:02]} e6 {[%clk 00:15:08]} {[%emt
00:00:02]} 2. c4 {[%clk 00:15:10]} {[%emt 00:00:02]} f5 {[%clk 00:15:11]}
{[%emt 00:00:02]} 3. g3 {[%clk 00:15:12]} {[%emt 00:00:03]} Nf6 {[%clk
00:15:14]} {[%emt 00:00:02]} 4. Bg2 {[%clk 00:15:15]} {[%emt 00:00:02]} c6
{[%clk 00:15:18]} {[%emt 00:00:02]} 5. Nf3 {[%clk 00:15:08]} {[%emt 00:00:12]}
d5 {[%clk 00:15:21]} {[%emt 00:00:02]} 6. O-O {[%clk 00:15:05]} {[%emt
00:00:07]} Bd6 {[%clk 00:15:09]} {[%emt 00:00:17]} 7. Bf4 {[%clk 00:14:32]}
{[%emt 00:00:38]} O-O {[%clk 00:14:41]} {[%emt 00:00:34]} 8. Nc3 {[%clk
00:13:30]} {[%emt 00:01:07]} b6 {[%clk 00:13:59]} {[%emt 00:00:47]} 9. cxd5
{[%clk 00:12:49]} {[%emt 00:00:46]} Bxf4 {[%clk 00:12:54]} {[%emt 00:01:10]} 10.
gxf4 {[%clk 00:12:45]} {[%emt 00:00:08]} cxd5 {[%clk 00:12:13]} {[%emt
00:00:47]} 11. Rc1 {[%clk 00:12:09]} {[%emt 00:00:40]} Ne4 {[%clk 00:11:12]}
{[%emt 00:01:06]} 12. Ne5 {[%clk 00:10:46]} {[%emt 00:01:29]} Bb7 {[%clk
00:10:47]} {[%emt 00:00:30]} 13. Nb5 {[%clk 00:09:36]} {[%emt 00:01:15]} Na6
{[%clk 00:09:23]} {[%emt 00:01:30]} 14. Qa4 {[%clk 00:07:01]} {[%emt 00:02:39]}
Nd6 {[%clk 00:08:27]} {[%emt 00:01:01]} 15. Nxd6 {[%clk 00:05:13]} {[%emt
00:01:53]} Qxd6 {[%clk 00:08:28]} {[%emt 00:00:04]} 16. Qd7 {[%clk 00:05:16]}
{[%emt 00:00:02]} Qxd7 {[%clk 00:08:12]} {[%emt 00:00:22]} 17. Nxd7 {[%clk
00:05:18]} {[%emt 00:00:02]} Rfc8 {[%clk 00:07:41]} {[%emt 00:00:35]} 18. a3
{[%clk 00:04:47]} {[%emt 00:00:37]} Rxc1 {[%clk 00:05:58]} {[%emt 00:01:48]} 19.
Rxc1 {[%clk 00:04:48]} {[%emt 00:00:03]} Rc8 {[%clk 00:05:57]} {[%emt
00:00:06]} 20. Rxc8+ {[%clk 00:04:38]} {[%emt 00:00:15]} Bxc8 {[%clk 00:05:57]}
{[%emt 00:00:06]} 21. Ne5 {[%clk 00:04:38]} {[%emt 00:00:05]} Nc7 {[%clk
00:05:21]} {[%emt 00:00:41]} 22. Nc6 {[%clk 00:04:09]} {[%emt 00:00:34]} Bd7
{[%clk 00:05:23]} {[%emt 00:00:03]} 23. Ne5 {[%clk 00:03:57]} {[%emt 00:00:17]}
Be8 {[%clk 00:05:13]} {[%emt 00:00:15]} 24. e3 {[%clk 00:03:43]} {[%emt
00:00:18]} 1/2-1/2

[Event "Open NK Rapid 2025"]
[Site "Helmond, Netherlands"]
[Date "2025.05.03"]
[Round "5.21"]
[White "Zecha, Oscar"]
[Black "Ruben, Berend"]
[Result "1-0"]
[TimeControl "15+5"]
[WhiteFideId "1073826"]
[BlackFideId "1084682"]
[WhiteElo "1873"]
[BlackElo "2074"]

1. b3 {[%clk 00:15:08]} {[%emt 00:00:01]} Nc6 {[%clk 00:15:02]} {[%emt
00:00:08]} 2. Bb2 {[%clk 00:15:13]} {[%emt 00:00:01]} e5 {[%clk 00:15:03]}
{[%emt 00:00:03]} 3. e3 {[%clk 00:15:17]} a6 {[%clk 00:14:44]} {[%emt
00:00:24]} 4. Nf3 {[%clk 00:15:02]} {[%emt 00:00:20]} d6 {[%clk 00:14:23]}
{[%emt 00:00:26]} 5. c4 {[%clk 00:14:57]} {[%emt 00:00:10]} Bg4 {[%clk
00:13:51]} {[%emt 00:00:36]} 6. h3 {[%clk 00:15:01]} {[%emt 00:00:02]} Bh5
{[%clk 00:13:49]} {[%emt 00:00:06]} 7. Be2 {[%clk 00:15:05]} {[%emt 00:00:02]}
Bg6 {[%clk 00:13:21]} {[%emt 00:00:33]} 8. d4 {[%clk 00:15:00]} {[%emt
00:00:11]} e4 {[%clk 00:12:21]} {[%emt 00:01:04]} 9. Nfd2 {[%clk 00:15:03]}
{[%emt 00:00:02]} Qg5 {[%clk 00:11:50]} {[%emt 00:00:35]} 10. O-O {[%clk
00:14:43]} {[%emt 00:00:26]} O-O-O {[%clk 00:11:05]} {[%emt 00:00:49]} 11. Nc3
{[%clk 00:12:32]} {[%emt 00:02:17]} f5 {[%clk 00:10:48]} {[%emt 00:00:22]} 12.
Kh1 {[%clk 00:11:51]} {[%emt 00:00:46]} Nf6 {[%clk 00:10:27]} {[%emt 00:00:25]}
13. Qe1 {[%clk 00:10:20]} {[%emt 00:01:38]} Be7 {[%clk 00:09:55]} {[%emt
00:00:37]} 14. f4 {[%clk 00:09:59]} {[%emt 00:00:25]} Qh6 {[%clk 00:08:22]}
{[%emt 00:01:38]} 15. d5 {[%clk 00:09:57]} {[%emt 00:00:08]} Nb8 {[%clk
00:08:13]} {[%emt 00:00:14]} 16. b4 {[%clk 00:09:29]} {[%emt 00:00:33]} Bh5
{[%clk 00:08:04]} {[%emt 00:00:13]} 17. Bxh5 {[%clk 00:09:21]} {[%emt
00:00:13]} Nxh5 {[%clk 00:07:53]} {[%emt 00:00:14]} 18. Nb3 {[%clk 00:08:52]}
{[%emt 00:00:37]} g5 {[%clk 00:07:12]} {[%emt 00:00:45]} 19. Nd4 {[%clk
00:08:11]} {[%emt 00:00:47]} Rdf8 {[%clk 00:06:18]} {[%emt 00:00:58]} 20. fxg5
{[%clk 00:07:52]} {[%emt 00:00:25]} Qxg5 {[%clk 00:05:33]} {[%emt 00:00:49]} 21.
Ne6 {[%clk 00:07:30]} {[%emt 00:00:27]} Qg6 {[%clk 00:04:40]} {[%emt 00:00:57]}
22. Nxf8 {[%clk 00:07:00]} {[%emt 00:00:36]} Rxf8 {[%clk 00:04:44]} {[%emt
00:00:01]} 23. Ne2 {[%clk 00:06:20]} {[%emt 00:00:45]} Rg8 {[%clk 00:04:25]}
{[%emt 00:00:25]} 24. Qf2 {[%clk 00:06:23]} {[%emt 00:00:02]} Nd7 {[%clk
00:04:24]} {[%emt 00:00:06]} 25. Nf4 {[%clk 00:05:31]} {[%emt 00:00:57]} Nxf4
{[%clk 00:04:17]} {[%emt 00:00:11]} 26. exf4 {[%clk 00:05:35]} {[%emt
00:00:02]} Bh4 {[%clk 00:04:12]} {[%emt 00:00:09]} 27. Qe2 {[%clk 00:05:14]}
{[%emt 00:00:26]} e3 {[%clk 00:03:58]} {[%emt 00:00:20]} 28. Bd4 {[%clk
00:04:23]} {[%emt 00:00:55]} Bf2 {[%clk 00:03:27]} {[%emt 00:00:36]} 29. Rxf2
{[%clk 00:03:21]} {[%emt 00:01:07]} exf2 {[%clk 00:03:30]} {[%emt 00:00:02]} 30.
Qxf2 {[%clk 00:03:26]} Nf6 {[%clk 00:03:15]} {[%emt 00:00:20]} 31. Bxf6 {[%clk
00:03:27]} {[%emt 00:00:04]} Qxf6 {[%clk 00:03:18]} 32. Re1 {[%clk 00:03:28]}
{[%emt 00:00:04]} Qc3 {[%clk 00:03:19]} {[%emt 00:00:05]} 33. Qe3 {[%clk
00:03:09]} {[%emt 00:00:24]} Qxb4 {[%clk 00:03:15]} {[%emt 00:00:09]} 34. Qe6+
{[%clk 00:03:13]} {[%emt 00:00:01]} Kb8 {[%clk 00:03:18]} 35. Qxg8+ {[%clk
00:03:16]} {[%emt 00:00:01]} Ka7 {[%clk 00:03:16]} {[%emt 00:00:08]} 36. Qe6
{[%clk 00:03:11]} {[%emt 00:00:10]} Qxc4 {[%clk 00:03:16]} {[%emt 00:00:05]} 37.
Qxf5 {[%clk 00:03:01]} {[%emt 00:00:15]} Qxa2 {[%clk 00:02:56]} {[%emt
00:00:25]} 38. Qe4 {[%clk 00:02:52]} {[%emt 00:00:14]} 1-0